Cogmind - Beta 15 @@@ ROGUE MODE // 2025.10.04 @ 04:19:55 Player: souux Result: Destroyed by IO-46B(R) with Subdweller Laser Performance ------------- Evolutions (0) 0 Regions Visited (2) 400 Robots Destroyed (31) 155 Value Destroyed (669) 669 Prototype IDs (0) 0 Alien Tech Used (0) 0 Bonus (0) 0 TOTAL SCORE: 1224 Bonus ------- None Cogmind --------- Core Integrity 0/250 Matter 273/300 Energy 189/200 System Corruption 2% Temperature Cool (18) Movement Rolling (110) Location -10/Subcaves Parts ------- > --- POWER (1) -------- Subdweller Power Source > --- PROPULSION (2) --- Subdweller Monowheel Subdweller Monowheel > --- UTILITY (2) ------ Large Storage Unit Makeshift Light Armor Plating > --- WEAPON (2) ------- Particle Gun Subdweller Machine Gun > --- INVENTORY (15) --- Light Nuclear Core Compact Wheel Improved Terrain Scanner Hacking Suite Makeshift Hacking Suite Trap Extractor (1/4 Piercing) Particle Gun Particle Gun Particle Gun Barrage Gun Grenade Launcher Peak State ------------ > --- POWER ------------ Subdweller Power Source > --- PROPULSION ------- Subdweller Monowheel Subdweller Monowheel > --- UTILITY ---------- Large Storage Unit Makeshift Light Armor Plating > --- WEAPON ----------- Particle Gun Subdweller Machine Gun > --- INVENTORY -------- Light Nuclear Core Compact Wheel Improved Terrain Scanner Hacking Suite Makeshift Hacking Suite Trap Extractor Particle Gun Particle Gun Particle Gun Barrage Gun Grenade Launcher [Rating: 17] Favorites ----------- Power Improved Ion Engine Engine Improved Ion Engine Propulsion Light Treads Treads Light Treads Leg Aluminum Leg Wheel Compact Wheel Utility Large Storage Unit Device Improved Terrain Scanner Storage Large Storage Unit Protection Makeshift Light Armor Plating Weapon Particle Gun Energy Gun Particle Gun Ballistic Gun Subdweller Machine Gun Ballistic Cannon Light Cannon Launcher Grenade Launcher Build | -11 -10 -10 ------- Run | Yrd Mat Sub Slots Evolved . | . . . Power . | . . . Propulsion . | . . . Utility . | . . . Weapon . | . . . Parts Attached 27 | 6 11 10 Power 4 | . 2 2 Engine 4 | . 2 2 Core . | . . . Reactor . | . . . Propulsion 8 | 3 3 2 Treads 2 | . 2 . Leg 1 | 1 . . Wheel 5 | 2 1 2 Hover . | . . . Flight . | . . . Utility 6 | 1 2 3 Device 3 | . 1 2 Storage 2 | 1 1 . Processor . | . . . Hackware . | . . . Protection 1 | . . 1 Artifact . | . . . Weapon 9 | 2 4 3 Energy Gun 4 | 1 2 1 Energy Cannon . | . . . Ballistic Gun 3 | 1 . 2 Ballistic Cannon 1 | . 1 . Launcher 1 | . 1 . Special Weapon . | . . . Impact Weapon . | . . . Slashing Weapon . | . . . Piercing Weapon . | . . . Special Melee Weapon . | . . . Unidentified Prototypes . | . . . Parts Lost 6 | . 3 3 Power . | . . . Propulsion 3 | . 1 2 Utility 1 | . 1 . Weapon 2 | . 1 1 Highest Loss Streak 3 | . 3 3 To Critical Strikes . | . . . Average Backups 13 | 5 10 14 Power 2 | 1 2 2 Propulsion 2 | 3 2 2 Utility 4 | . 3 4 Weapon 4 | . 2 4 Tool/Special . | . . . Unused Backups 18 | 1 4 13 Power 6 | . 2 4 Propulsion 3 | 1 . 2 Utility 5 | . 1 4 Weapon 4 | . 1 3 Tool/Special . | . . . Average Slot Usage (%) 98 | . 94 99 Engine 13 | . 13 14 Treads 19 | . 2 26 Wheel 8 | . 25 1 Device 9 | . 9 8 Storage 14 | . 14 14 Protection 3 | . . 5 Energy Gun 18 | . 15 20 Ballistic Gun 8 | . 9 7 Peak Build Rating 17 | 6 12 17 Average Rating 12 | 3 9 14 On Entrance 5 | . 6 11 Naked Turns . | . . . Heaviest Build 37 | 9 34 37 Greatest Support 40 | 32 40 40 Greatest Overweight (x) 2 | 2 2 1 Average Overweight (x) . | . . . Largest Inventory Capacity 15 | 8 15 15 Average Capacity 14 | 7 13 15 Most Carried 15 | 8 15 15 Average Carried 13 | 6 10 14 Final Capacity 15 | 8 15 15 Final Carried 15 | 8 15 11 Class Distribution -------------------- 100% | Mutant Dominant Class ---------------- Mutant | -10/Materials Mutant | -10/Subcaves Resources | -11 -10 -10 ----------- Run | Yrd Mat Sub Matter Collected 808 | 284 280 244 Remotely . | . . . Salvage Created 799 | 145 381 273 Parts 62 | 11 35 16 Haulers Intercepted . | . . . Recyclers Shooed 1 | . 1 . Parts Field Recycled . | . . . Retrieved Matter . | . . . Parts Self-Destructed 16 | . . 16 Prevented . | . . . Kills | -11 -10 -10 ------- Run | Yrd Mat Sub Combat Hostiles Destroyed 20 | . 12 8 Guns 14 | . 6 8 AOE 6 | . 6 . Classes Destroyed 10 | 2 6 2 Worker 1 | . 1 . Builder 1 | . 1 . Tunneler 3 | 3 . . Recycler 2 | 1 1 . Operator 1 | . 1 . Turret 2 | . . 2 Watcher 1 | . 1 . Swarmer 8 | . 6 2 Grunt 8 | . 6 2 Subdweller 4 | . . 4 Best Kill Streak 8 | 4 8 4 Combat Bots Only 6 | . 6 2 Max Kills in Single Turn 3 | 1 3 1 Gunslinging . | . . . Exploded 3 | . 3 . Melee . | . . . Uniques/NPCs Destroyed . | . . . Combat | -11 -10 -10 -------- Run | Yrd Mat Sub Hostile Shots Fired 130 | . 33 97 Missed 44 | . 9 35 Hits 86 | . 24 62 Projectile 86 | . 24 62 Critical Strikes 1 | . . 1 Damage Taken 1283 | . 310 973 Core 270 | . 59 211 Absorbed by Shields . | . . . Core Remaining (%) 100 | 100 . . Volleys Fired 81 | 8 35 38 Largest 2 | 2 2 2 Hottest 130 | 60 130 130 Shots Fired 147 | 10 64 73 Gun 135 | 10 52 73 Cannon 6 | . 6 . Launcher 6 | . 6 . Special . | . . . Kinetic 56 | 8 27 21 Thermal 75 | . 23 52 Explosive 6 | . 6 . Electromagnetic 10 | 2 8 . Robot Hit Streak 9 | 4 9 8 Robot Miss Streak 4 | 2 2 4 Penetration Max . | . . . Secondary Targets 2 | . . 2 Max Gunslinging Chain 1 | . . 1 Shots Hit Robots 86 | 6 36 44 Core Hits 42 | 5 20 17 Critical Kills . | . . . Critical Parts Destroyed . | . . . Critical Strikes 4 | . . 4 Burn 4 | . . 4 Melee Attacks . | . . . Impact . | . . . Slashing . | . . . Piercing . | . . . Sneak Attacks . | . . . Combat Hostiles . | . . . Follow-up Attacks . | . . . Damage Inflicted 1798 | 88 887 823 Guns 1366 | 88 455 823 Cannons 86 | . 86 . Explosions 346 | . 346 . Melee . | . . . Ramming . | . . . Kinetic 668 | 75 258 335 Thermal 713 | . 225 488 Explosive 346 | . 346 . Electromagnetic 71 | 13 58 . Impact . | . . . Slashing . | . . . Piercing . | . . . Highest Corruption 2 | . 2 2 Average Corruption 2 | . 2 2 Corruption Purged . | . . . Corruption Blocked . | . . . Effects 27 | . 11 16 Message Errors 7 | . 1 6 Matter Fused 4 | . 1 3 Heat Flow Errors 4 | . 1 3 Energy Discharges 4 | . 3 1 Parts Rejected 2 | . 2 . Data Loss (minor) 4 | . 2 2 Data Loss (major) 1 | . 1 . Misfires 1 | . . 1 Overload Shots . | . . . Overflow Damage 3 | . 3 . Projectiles . | . . . Explosions 3 | . 3 . Melee . | . . . Knockbacks 3 | . 3 . Impact . | . . . Kinetic 3 | . 3 . Secondary . | . . . Self-Inflicted Damage . | . . . Shots . | . . . Rammed . | . . . Targets Rammed . | . . . Kicked . | . . . Crushed . | . . . Highest Temperature 370 | . 370 264 Average Temperature 91 | . 101 81 Received Heat Transfer 414 | . 147 267 Siege Activations . | . . . Martial Activations . | . . . Shielding Activations . | . . . Robots Disrupted . | . . . Combat Hostiles . | . . . Robots Corrupted . | . . . Combat Hostiles . | . . . Parts Fried . | . . . Impact Corruptions . | . . . Robots Melted . | . . . Combat Hostiles . | . . . Parts Melted 2 | . . 2 Heat Transferred 1924 | . 518 1406 Parts Sabotaged . | . . . Parts Stolen . | . . . Parts Stripped . | . . . Power Chain Reactions . | . . . Alert | -11 -10 -10 ------- Run | Yrd Mat Sub Maximum Alert Level . | . . . Low Security (%) 100 | 100 100 . Level 1 . | . . . Level 2 . | . . . Level 3 . | . . . Level 4 . | . . . Level 5 . | . . . High Security . | . . . Max Security . | . . . Peak Influence 171 | 10 171 . Initial 3 | . 3 . Average 55 | 1 63 . Influence Increases 530 | 20 350 160 Destroy 0b10 Robot/C 360 | . 240 120 Destroy 0b10 Robot/NC 45 | 20 25 . Destroy Leader 52 | . 42 10 Successful Hack 17 | . 17 . Destroy Structure 11 | . 11 . Lose Combat Pursuer 45 | . 15 30 Influence Decreases 471 | 15 234 222 Entered New Map 61 | . 2 59 Time Decay 350 | 15 202 133 Lost Part 60 | . 30 30 Squads Dispatched 1 | . 1 . Investigation . | . . . Extermination . | . . . Reinforcement 1 | . 1 . Assault . | . . . Garrison . | . . . Intercept . | . . . Searches Triggered . | . . . Construction Impeded . | . . . Haulers Reinforced . | . . . Active Scanning Responses . | . . . Cargo Convoy Interrupts . | . . . Stealth | -11 -10 -10 --------- Run | Yrd Mat Sub Distress Signals 2 | . 2 . Communications Jammed . | . . . Distress Signals . | . . . Times Spotted 35 | . 19 16 Peak Tracking Total 5 | . 5 5 Tactical Retreats 2 | . 1 1 Traps | -11 -10 -10 ------- Run | Yrd Mat Sub Traps Triggered 3 | . 2 1 Indirectly . | . . . Trap Hack Attempts . | . . . Triggered . | . . . Disarmed . | . . . Reprogrammed . | . . . Reused . | . . . Traps Extracted . | . . . Installed . | . . . Triggered . | . . . Most Traps Carried 1 | . . 1 Machines | -11 -10 -10 ---------- Run | Yrd Mat Sub Machines Disabled . | . . . Max in Single Turn . | . . . Machines Repaired . | . . . Machines Dismantled . | . . . Machines Sabotaged . | . . . Overloaded Fab Kills . | . . . Hacking | -11 -10 -10 --------- Run | Yrd Mat Sub Machines Accessed 5 | . 4 1 Terminals 4 | . 4 . Fabricators . | . . . Repair Stations . | . . . Recycling Units . | . . . Scanalyzers . | . . . Garrison Access . | . . . Total Hacks 13 | . 9 4 Successful 8 | . 4 4 Failed 5 | . 5 . Catastrophic . | . . . Database Lockouts . | . . . Manual 7 | . 7 . Terminals 9 | . 9 . Fabricators . | . . . Repair Stations . | . . . Recycling Units . | . . . Scanalyzers . | . . . Garrison Access . | . . . Terminal Hacks 5 | . 1 4 Record 4 | . . 4 Locate Traps 1 | . 1 . Fabricator Hacks . | . . . Repair Station Hacks . | . . . Recycling Unit Hacks . | . . . Scanalyzer . | . . . Garrison Access Hacks . | . . . Unauthorized Hacks 3 | . 3 . Terminals 3 | . 3 . Botnet 3 | . 3 . Fabricators . | . . . Repair Stations . | . . . Recycling Units . | . . . Scanalyzers . | . . . Garrison Access . | . . . Data Cores Recovered . | . . . Used . | . . . Hacking Detections 4 | . 4 . Full Trace Events . | . . . Feedback Events . | . . . Feedback Blocked . | . . . Robot Schematics Acquired . | . . . Robots Built . | . . . Authchips . | . . . Time . | . . . Total Robot Build Rating . | . . . Part Schematics Acquired . | . . . Parts Built . | . . . Authchips . | . . . Time . | . . . Total Part Build Rating . | . . . Parts Repaired . | . . . Time . | . . . Parts Recycled . | . . . Recycled Matter . | . . . Retrieved Matter . | . . . Retrieved Components . | . . . Parts Scanalyzed . | . . . Part Schematics Acquired . | . . . Parts Damaged . | . . . Bothacking | -11 -10 -10 ------------ Run | Yrd Mat Sub Used RIF Installer . | . . . Robots Hacked . | . . . Non-combat . | . . . Combat . | . . . Robot Hacks Applied . | . . . Relay Couplers Released . | . . . Fabnet Peak Effective % . | . . . Robots Rewired . | . . . Allies Hacked . | . . . Hacks Repelled . | . . . Allies | -11 -10 -10 -------- Run | Yrd Mat Sub Total Allies . | . . . Largest Group . | . . . Highest-Rated Group . | . . . Highest-Rated Ally . | . . . Total Orders . | . . . Ally Attacks . | . . . Total Damage . | . . . Kills . | . . . Allies Corrupted . | . . . Allies Melted . | . . . Intel | -11 -10 -10 ------- Run | Yrd Mat Sub Active Infowar (turns) 1494 | . 469 1025 Terrain 1025 | . . 1025 Seismic 469 | . 469 . Robot Analysis Total . | . . . Derelict Logs Recovered . | . . . Drone Launches . | . . . Drone Recoveries . | . . . Exploration | -11 -10 -10 ------------- Run | Yrd Mat Sub Turns Passed 2407 | 95 667 1645 Spaces Moved 1204 | 53 465 686 Core 24 | 24 . . Treads 651 | . 24 627 Legs 1 | 1 . . Wheels 528 | 28 441 59 Hover . | . . . Flight . | . . . Fastest Speed 50 | 50 100 105 Average Speed 135 | 106 108 155 Slowest Speed 240 | 150 240 160 Overloaded Moves . | . . . Propulsion Burnouts . | . . . Robots Hopped . | . . . Potential Cave-ins . | . . . Cave-ins Triggered . | . . . Exploration Rate (%) 44 | 5 80 48 Regions Visited 2 Branch Regions 1 Pre-discovered Areas . | . . . Known Exits Taken . | . . . Unknown Exits Taken 2 | 1 1 . Scrap Searched 4 | . . 4 Spaces Dug . | . . . Terrain Destroyed 15 | . 15 . Melee . | . . . Projectile . | . . . AOE 15 | . 15 . Terrain Rammed . | . . . Walls Destroyed . | . . . Machines Disabled . | . . . Actions | -11 -10 -10 --------- Run | Yrd Mat Sub Total 1840 | 81 563 1196 Wait 444 | . 17 427 Move 1202 | 52 464 686 Hop . | . . . Pick Up 46 | 13 20 13 Fast Attach 3 | 2 1 . Attach 16 | 3 8 5 Detach . | . . . Swap 23 | 1 9 13 Drop 25 | 2 9 14 Fire 81 | 8 35 38 Melee . | . . . Ram . | . . . Kick . | . . . Crush . | . . . Escape Stasis . | . . . Rewire . | . . . Trap . | . . . Miscellaneous . | . . . Route ------- -11/Scrapyard -10/Materials (discovered 4 exits: [*Mat x2] / [*Min] / *Sub) -10/Subcaves (discovered 2 exits: [*Mat] / [*Rec]) History --------- Turn | Location | Event 2 | -11/Scrapyard | Met Revision 17 27 | -11/Scrapyard | Discovered new exit (range 15) 96 | -11/Scrapyard | Entered Materials 158 | -10/Materials | Discovered new exit (range 15) 305 | -10/Materials | Build established: Mutant 463 | -10/Materials | Discovered new exit (range 7) 498 | -10/Materials | Discovered new exit (range 3) 596 | -10/Materials | Lost 3 parts (1n1u1w) 640 | -10/Materials | Discovered new exit (range 13) 763 | -10/Materials | Entered Subcaves 767 | -10/Subcaves | Shifting Twisted Machinery released Sub. Power Source 775 | -10/Subcaves | Shifting Twisted Machinery released Mak. Light Armor Plating 789 | -10/Subcaves | Discovered new exit (range 10) 1025 | -10/Subcaves | Visited Clippyterm 1030 | -10/Subcaves | Learned Factory emergency access door positions 1300 | -10/Subcaves | Shifting Twisted Machinery released Battle Cannon 1302 | -10/Subcaves | Shifting Twisted Machinery released Battle Cannon 1396 | -10/Subcaves | Disturbed a concealed Subdweller 1875 | -10/Subcaves | Core integrity fell below 50% 2283 | -10/Subcaves | Discovered new exit (range 13) 2405 | -10/Subcaves | Core integrity fell below 20% 2408 | -10/Subcaves | Destroyed by IO-46B(R) with Subdweller Laser Last Messages --------------- 02290_ S-10 Pest destroyed. 02295_ Flight Unit fries itself beyond repair. 02296_ S-10 Pest destroyed. 02299_ Acquired 18 matter. 02300_ Flight Unit fries itself beyond repair. 02301_ Acquired 2 matter. 02302_ Lgt. Assault Rifle fries itself beyond repair. 02303_ Autobeam Turret destroyed. 02303_ Switching to secondary target: Autobeam Turret. 02304_ Acquired 2 matter. 02304_ Subatomizers dissect the Sub. Power Source. 02308_ Lgt. Ion Engine fries itself beyond repair. 02311_ Autobeam Turret destroyed. 02314_ Flight Unit fries itself beyond repair. 02314_ Acquired 4 matter. 02330_ Subatomizers dissect the Sub. Power Source, destroying it. 02394_ Critical hit (Destroy). 02396_ Sub. Machine Gun destroyed. 02400_ Lgt. Treads destroyed. 02408_ G5-VF0(R) destroyed. Map ----- +----------------------------------------------------+ | #??????????????????????? | | # ## #??????????????????????? | | # ### #??????????????????????? | | # #### ### #??????????????????????? | | ####### ##### ##??? #?????????????????????? | | ##????## #???# ####??? ????????????????????? | | " ??######### #???? ??????????????????? | | ?# ??## ## ##????? ?????????????????? | | ## #?# ### ##????????????????????????? | | % ##& ##?## ##???????????????????????? | | % !%% ###?? #???????????????????????? | | %& # ## ##???????????????????????? | | % ### % """ ##????????????????????????? | | ????## % ##""""#?????????????????????????? | | ???????## # # "##????????????????????????? | | ????????# ##### ?????????????????????????? | | ????????# #???# #?????????????????????????? | | ????????## ##??# " #????###??????????????????? | | ???????#### ##?# ""##???#""#??????????????????? | | ???????# #?# ##?####""##?????????????????? | | ???????# ##### #### #### ## "##????????????????? | | ???????#?????# ## "" "### ????????????? | | ?????????????## """" " ????????????? | | ??????????????# # RRR """" ""??????????????? | | ??????????????# # ## %& """" "??????????????? | | ??????????????# ##### @### "" ""????????????? | | ????????? #??####??" ### "????????????? | | ??????# #######""##?????????"##????????????????? | | ????????????????#""#??????????"#?????????????????? | | ????????????????""" ???????????#?????????????????? | | ???????????????# ?????????????????????????????? | | ???????????????# ????????????????????????????? | | ???????????????## ????????????????????????????? | | ????????????????# "???????????????????????????? | | ????????????????? """???????????????????????????? | | ?????????????????????????????????????????????????? | | ?????????????????????????????????????????????????? | | ?????????????????????????????????????????????????? | | ?????????????????????????????????????????????????? | | ?????????????????????????????????????????????????? | | ?????????????????????????????????????????????????? | | ?????????????????????????????????????????????????? | | ?????????????????????????????????????????????????? | | ?????????????????????????????????????????????????? | | ?????????????????????????????????????????????????? | | ?????????????????????????????????????????????????? | | ?????????????????????????????????????????????????? | | ?????????????????????????????????????????????????? | | ?????????????????????????????????????????????????? | | ?????????????????????????????????????????????????? | +----------------------------------------------------+ Best States ------------- Heat Dissipation 25 Energy Generation 15 Energy Capacity 265 Matter Stores 300 Matter Capacity 300 Sight Range 16 Terrain Scan Range 16 Terrain Scan Density 10 Armor Coverage 100 Evasion (%) 40 Recoil Reduction 2 Item Schematics ----------------- None Robot Schematics ------------------ None Fabricated ------------ Nothing Repaired ---------- Nothing Alien Tech Used ----------------- None Achievements -------------- None Challenges ------------ None Game ------ Seed AblativeCobblerCalibrator Manual? 0 Play Time 00:27:42 Cumulative 50.2 hours Start 2025.10.04 @ 03:52:26 End 2025.10.04 @ 04:19:55 Sessions 1 Manual Loads 0 Difficulty Rogue Special Mode None Game No. 47 Rogue 47 Adventurer 0 Explorer 0 Win Type - Total 0 Types 0/0/0/0/0/0/0/0/0/0 Lore% 14 Gallery% 32 Achievement% 28 Wizard Run 0 Options --------- Layout 0 ASCII 0 Keyboard 0 Movement Mouse Keybinds 0 Fullscreen 2 Font 18/X11 Map View 76x50 Zoom Use 20% Tactical HUD 1 Map Filters NONE Filters NONE Steam 1 RUN: 423a557e-b9bc-491a-a592-4a230ea18f14